bitfinex/quotes_SOLUSD_20250217
["timestamp","ask_amount","ask_price","bid_price","bid_amount"]
[1739810981241,0.03,178.93,178.92,35.37899378]
[1739810982193,0.03,178.93,178.88,29.78999378]
[1739810982359,0.03,178.93,178.89,29.78999378]
[1739810983276,0.03,178.93,178.9,29.78999378]
[1739810984494,0.03,178.93,178.91,29.78999378]
[1739810984992,0.03,178.93,178.9,29.78999378]
[1739810985196,0.03,178.93,178.89,35.37979378]
[1739810985403,0.03,178.93,178.91,29.78999378]
[1739810985882,0.03,178.93,178.92,29.78999378]
[1739810986066,0.03,178.93,178.89,5.5898]
[1739810986266,0.03,178.93,178.91,29.78999378]
[1739810986789,0.03,178.93,178.92,29.78999378]
[1739810987585,0.03,178.93,178.91,29.78999378]
[1739810987901,0.03,178.93,178.88,29.78999378]
[1739810988284,0.03,178.93,178.91,29.78999378]
[1739810988491,0.03,178.93,178.88,0.83832908]
[1739810988804,0.03,178.93,178.92,29.78999378]
[1739810989300,0.03,178.93,178.91,29.78999378]
[1739810989598,0.03,178.93,178.92,29.78999378]
[1739810989896,0.03,178.93,178.92,35.37899378]
[1739810990894,0.03,178.93,178.89,5.59]
[1739810991116,0.03,178.93,178.89,35.37999378]
[1739810991608,0.03,178.93,178.9,29.78999378]
[1739810992114,0.03,178.93,178.89,35.37989378]
[1739810992411,0.03,178.93,178.9,29.78999378]
[1739810993311,0.03,178.93,178.91,29.78999378]
[1739810993498,0.03,178.93,178.88,5.5902]
[1739810993706,0.03,178.93,178.89,29.78999378]
[1739810994287,0.03,178.93,178.89,35.37989378]
[1739810994788,0.03,178.93,178.9,18.5808009]
[1739810996011,0.03,178.93,178.92,18.5808009]
[1739810997518,0.03,178.93,178.92,24.1698009]
[1739811000214,0.03,178.93,178.9,5.5896]
[1739811000395,0.03,178.93,178.9,24.1704009]
[1739811000600,0.03,178.93,178.91,18.5808009]
[1739811001310,0.03,178.93,178.92,18.5808009]
[1739811001684,0.03,178.93,178.88,20.0]
[1739811002008,0.03,178.93,178.89,18.5808009]
[1739811002227,0.03,178.93,178.92,38.5808009]
[1739811002803,0.03,178.93,178.92,18.5808009]
[1739811003491,0.03,178.93,178.89,18.5808009]
[1739811003803,0.03,178.93,178.88,18.5808009]
[1739811004722,0.03,178.93,178.89,18.5808009]
[1739811005312,0.03,178.93,178.91,18.5808009]
[1739811006122,0.03,178.93,178.9,24.1703009]
[1739811006420,0.03,178.93,178.91,18.5808009]
[1739811006627,0.03,178.93,178.92,18.5808009]
[1739811007926,0.03,178.93,178.9,5.5895]
[1739811008131,0.03,178.93,178.89,24.1707009]
[1739811008804,0.03,178.93,178.9,18.5808009]
[1739811009125,0.03,178.93,178.91,18.5808009]
[1739811009826,0.03,178.93,178.9,18.5808009]
[1739811010429,0.03,178.93,178.91,18.5808009]
[1739811010606,0.03,178.93,178.92,18.5808009]
[1739811012125,0.03,178.93,178.92,24.1698009]
[1739811012429,0.03,178.93,178.92,42.7506018]
[1739811012625,0.03,178.96,178.92,45.10937118]
[1739811012826,0.03,178.96,178.95,18.5808009]
[1739811013726,0.03,178.96,178.95,19.41884253]
[1739811014531,0.03,178.96,178.95,25.00694253]
[1739811015136,0.03,178.96,178.93,5.5885]
[1739811015324,0.03,178.96,178.93,18.5808009]
[1739811015833,18.6108009,178.96,178.9,18.5808009]
[1739811016134,18.5808009,178.95,178.89,18.5808009]
[1739811016306,18.6108009,178.96,178.9,18.5808009]
[1739811016508,24.1987009,178.96,178.9,18.5808009]
[1739811016831,18.5808009,178.95,178.89,18.5808009]
[1739811017929,24.1987009,178.96,178.9,18.5808009]
[1739811018129,0.03,178.96,178.93,18.5808009]
[1739811018640,0.03,178.96,178.92,18.5808009]
[1739811018933,0.03,178.96,178.9,18.5808009]
[1739811018934,5.6178,178.96,178.9,18.5808009]
[1739811019124,24.1986009,178.96,178.9,18.5808009]
[1739811019437,18.5808009,178.95,178.89,18.5808009]
[1739811019935,24.1690009,178.95,178.89,18.6438009]
[1739811020110,18.5808009,178.94,178.89,0.063]
[1739811020312,24.1990009,178.95,178.89,18.6438009]
[1739811021336,18.5808009,178.94,178.89,18.6438009]
[1739811022326,0.03,178.95,178.91,18.5808009]
[1739811022633,0.03,178.95,178.92,18.5808009]
[1739811022823,0.03,178.95,178.93,18.5808009]
[1739811023525,0.03,178.95,178.92,18.5808009]
[1739811023720,0.03,178.95,178.91,18.5808009]
[1739811023923,18.5808009,178.94,178.89,0.063]
[1739811024229,18.5808009,178.93,178.89,0.063]
[1739811024531,5.5884,178.94,178.89,0.063]
[1739811024532,18.5808009,178.92,178.89,0.063]
[1739811024932,18.5808009,178.91,178.89,0.063]
[1739811025825,18.5808009,178.92,178.89,0.063]
[1739811027434,24.1699009,178.92,178.89,0.063]
[1739811028147,18.5808009,178.93,178.89,0.063]
[1739811028320,24.1692009,178.94,178.89,0.063]
[1739811029441,0.03,178.95,178.91,18.5808009]
[1739811029628,0.03,178.95,178.92,18.5808009]
[1739811030221,0.03,178.95,178.91,18.5808009]
[1739811030546,5.6182,178.95,178.9,18.5808009]
[1739811030743,24.05156362,178.95,178.89,0.063]
[1739811031045,18.5808009,178.93,178.89,0.063]
[1739811031221,18.5808009,178.91,178.89,0.063]
[1739811031427,24.1705009,178.9,178.89,0.063]
[1739811031819,37.58234943,178.9,178.89,0.063]
[1739811032047,45.19135983,178.9,178.89,0.063]
[1739811033219,37.58234943,178.9,178.89,0.063]
[1739811034448,24.1705009,178.9,178.89,0.063]
[1739811034943,53.51466459,178.9,178.89,0.0001]
[1739811035142,20.0,178.86,178.76,0.063]
[1739811035445,18.5808009,178.8,178.76,0.063]
[1739811036126,24.1736009,178.8,178.76,0.063]
[1739811036319,18.5808009,178.8,178.76,0.063]
[1739811036643,24.1736009,178.8,178.76,0.063]
[1739811037418,24.1733009,178.82,178.76,18.6438009]
[1739811037727,18.5808009,178.82,178.76,18.6438009]
[1739811038041,18.5808009,178.81,178.76,0.063]
[1739811038431,18.5808009,178.79,178.76,0.063]
[1739811038744,18.5808009,178.8,178.76,0.063]
[1739811039139,18.5808009,178.81,178.76,0.063]
[1739811040133,24.1733009,178.81,178.76,0.063]
[1739811040447,18.5808009,178.8,178.76,0.063]
[1739811041854,18.5808009,178.77,178.76,0.063]
[1739811042229,24.1745009,178.77,178.76,0.063]
[1739811044161,24.1745009,178.77,178.71,0.063]
[1739811044162,20.0,178.72,178.71,0.063]
[1739811044321,20.0,178.72,178.71,0.0001]
[1739811044322,51.99264943,178.72,178.71,0.0001]
[1739811044647,13.41184853,178.71,178.64,21.18284747]
[1739811044841,18.5808009,178.65,178.64,21.18284747]
[1739811045456,18.5808009,178.65,178.59,18.5808009]
[1739811046071,18.5808009,178.64,178.58,10.30620708]
[1739811046242,18.5808009,178.64,178.58,28.88700798]
[1739811046548,18.5808009,178.65,178.59,18.5808009]
[1739811046749,18.5808009,178.66,178.6,18.5808009]
[1739811047047,18.5808009,178.65,178.6,18.5808009]
[1739811047439,18.5808009,178.62,178.58,10.30620708]
[1739811047640,19.00904853,178.67,178.58,8.70520708]
[1739811047641,18.5808009,178.59,178.58,8.70520708]
[1739811048537,24.1802009,178.59,178.58,0.063]
[1739811048748,35.45210896,178.59,178.58,0.063]
[1739811048954,48.86395749,178.59,178.58,0.063]
[1739811050165,29.85270896,178.59,178.58,0.063]
[1739811050460,29.85270896,178.6,178.58,0.063]
[1739811051840,88.72,178.63,178.58,0.063]
[1739811052158,88.1226,178.68,178.59,29.85270896]
[1739811052159,29.85270896,178.65,178.59,29.85270896]
[1739811052463,29.85270896,178.66,178.6,29.85270896]
[1739811052878,29.85270896,178.67,178.61,29.85270896]
[1739811053047,29.85270896,178.69,178.63,29.85270896]
[1739811053567,118.61270896,178.73,178.67,29.85270896]
[1739811054156,29.85270896,178.72,178.67,29.85270896]
[1739811054358,29.85270896,178.72,178.66,29.85270896]
[1739811054563,29.85270896,178.7,178.64,29.85270896]
[1739811054941,29.85270896,178.71,178.65,29.85270896]
[1739811055461,29.85270896,178.72,178.66,29.85270896]
[1739811055653,29.85270896,178.72,178.67,29.85270896]
[1739811055846,29.85270896,178.72,178.58,1.6706]
[1739811055847,29.85270896,178.69,178.58,2.50990809]
[1739811056048,29.85270896,178.63,178.58,0.063]
[1739811056354,29.85270896,178.62,178.58,0.063]
[1739811057270,29.85270896,178.63,178.58,0.063]
[1739811057684,5.5965,178.68,178.58,29.91570896]
[1739811057685,29.85270896,178.64,178.58,29.91570896]
[1739811057961,29.85270896,178.6,178.58,0.063]
[1739811058146,29.85270896,178.59,178.58,0.063]
[1739811058355,35.45210896,178.59,178.58,0.063]
[1739811060841,48.86395749,178.59,178.58,0.0001]
[1739811061039,13.41184853,178.58,178.57,0.0001]
[1739811061244,43.26455749,178.58,178.57,0.0001]
[1739811061971,43.26455749,178.58,178.56,0.0001]
[1739811062161,20.0,178.54,178.49,0.063]
[1739811062467,35.45390896,178.53,178.49,0.063]
[1739811062767,35.45300896,178.57,178.51,29.85270896]
[1739811062968,29.85270896,178.57,178.51,29.85270896]
[1739811063176,29.85270896,178.54,178.49,0.063]
[1739811063356,29.85270896,178.52,178.49,0.063]
[1739811063555,29.85270896,178.53,178.49,0.063]
[1739811064170,29.85270896,178.52,178.49,0.063]
[1739811064665,35.45400896,178.53,178.49,0.063]
[1739811064972,29.85270896,178.54,178.49,0.063]
[1739811066367,29.85270896,178.55,178.49,0.063]
[1739811066559,29.85270896,178.54,178.49,0.063]
[1739811066755,29.85270896,178.58,178.52,29.85270896]
[1739811066969,0.063,178.56,178.53,29.85270896]
[1739811067452,0.063,178.56,178.51,29.85270896]
[1739811069260,29.85270896,178.52,178.49,0.063]
[1739811069665,29.85270896,178.54,178.49,0.063]
[1739811069877,29.85270896,178.51,178.49,0.063]
[1739811070249,5.6022,178.5,178.49,0.063]
[1739811070457,35.45460896,178.51,178.49,0.063]
[1739811071648,29.85270896,178.52,178.49,0.063]
[1739811072571,5.6006,178.55,178.49,0.063]
[1739811072778,29.85270896,178.54,178.49,0.063]
[1739811073082,35.45330896,178.55,178.49,0.063]
[1739811073266,35.51600896,178.56,178.49,29.91570896]
[1739811073657,0.063,178.56,178.5,29.85270896]
[1739811073864,29.91570896,178.56,178.5,29.85270896]
[1739811074265,0.063,178.56,178.51,29.85270896]
[1739811074465,0.063,178.56,178.53,29.85270896]
[1739811074814,0.063,178.56,178.55,29.85270896]
[1739811075678,0.063,178.56,178.54,29.85270896]
[1739811076056,0.063,178.56,178.55,29.85270896]
[1739811076460,0.063,178.56,178.55,30.69251355]
[1739811077276,29.85270896,178.65,178.55,30.69251355]
[1739811077451,29.85270896,178.66,178.6,29.85270896]
[1739811077785,29.85270896,178.65,178.59,29.85270896]
[1739811077981,29.85270896,178.63,178.57,0.83966495]
[1739811078275,29.85270896,178.6,178.55,29.85270896]
[1739811078478,29.85270896,178.61,178.55,29.85270896]
[1739811078665,29.85270896,178.62,178.56,29.85270896]
[1739811078867,29.85270896,178.64,178.58,29.85270896]
[1739811079053,29.85270896,178.65,178.59,29.85270896]
[1739811079254,200.41270896,178.68,178.62,29.85270896]
[1739811079449,118.61270896,178.68,178.62,29.85270896]
[1739811080065,29.85270896,178.67,178.61,29.85270896]
[1739811080282,29.85270896,178.66,178.6,29.85270896]
[1739811080581,29.85270896,178.66,178.59,29.85270896]
[1739811080969,29.85270896,178.66,178.6,29.85270896]
[1739811081205,29.85270896,178.67,178.61,29.85270896]
[1739811081411,118.61270896,178.68,178.62,29.85270896]
[1739811081708,29.85270896,178.71,178.65,29.85270896]
[1739811082589,35.44840896,178.71,178.65,29.85270896]
[1739811083207,87.3953,178.72,178.65,29.85270896]
[1739811083391,81.8,178.72,178.67,29.85270896]
[1739811083590,29.85270896,178.72,178.66,29.85270896]
[1739811083797,29.85270896,178.7,178.64,35.88230896]
[1739811084715,5.5962,178.69,178.64,35.88230896]
[1739811084918,35.44870896,178.7,178.64,35.88230896]
[1739811086215,29.85270896,178.68,178.63,1.6415]
[1739811086407,81.8,178.67,178.59,1.6102]
[1739811086616,29.85270896,178.63,178.59,1.6102]
[1739811086817,35.45110896,178.62,178.56,35.88010896]
[1739811087127,29.85270896,178.61,178.56,6.0274]
[1739811087499,35.45110896,178.62,178.56,35.88010896]
[1739811087712,29.85270896,178.61,178.56,6.0274]
[1739811088829,5.5988,178.61,178.56,35.88010896]
[1739811089136,5.5988,178.61,178.56,6.0274]
[1739811089137,35.45150896,178.61,178.56,6.0274]
[1739811089815,35.45150896,178.61,178.56,6.0574]
[1739811090620,35.45110896,178.62,178.56,35.91010896]
[1739811091011,81.863,178.66,178.57,30.69247682]
[1739811091227,5.5975,178.65,178.57,29.85270896]
[1739811091524,29.85270896,178.63,178.57,29.85270896]
[1739811091722,35.45020896,178.65,178.58,30.69241549]
[1739811091927,0.063,178.66,178.61,29.85270896]
[1739811092302,0.063,178.66,178.63,29.85270896]
[1739811092523,0.063,178.66,178.62,29.85270896]
[1739811092706,35.51290896,178.66,178.6,29.85270896]
[1739811094122,0.063,178.66,178.61,29.85270896]
[1739811094840,5.6602,178.66,178.61,29.85270896]
[1739811096029,0.063,178.66,178.61,35.45130896]
[1739811096227,0.063,178.66,178.62,30.69221475]
[1739811096715,0.063,178.66,178.63,29.85270896]
[1739811097820,0.063,178.66,178.63,35.45070896]
[1739811098020,0.063,178.66,178.64,29.85270896]
[1739811098205,0.063,178.66,178.65,31.46110896]
[1739811098599,0.063,178.66,178.65,81.16546645]
[1739811099034,0.063,178.66,178.65,56.91025749]
[1739811099415,0.063,178.74,178.66,13.41184853]
[1739811099632,0.063,178.74,178.71,29.85270896]
[1739811099814,0.063,178.74,178.73,29.85270896]
[1739811100207,0.063,178.74,178.72,29.85270896]
[1739811100611,0.063,178.74,178.73,29.85270896]
[1739811101124,0.063,178.74,178.73,36.28657714]
[1739811102729,0.063,178.74,178.73,6.43386818]
[1739811103033,0.063,178.74,178.73,36.28657714]
[1739811103529,0.063,178.74,178.73,49.69842567]
[1739811103721,0.063,178.74,178.73,51.26452567]
[1739811104216,0.063,178.74,178.73,57.81112567]
[1739811104819,0.063,178.74,178.73,44.39927714]
[1739811106741,0.063,178.74,178.73,57.81112567]
[1739811107143,0.063,178.74,178.73,38.80427714]
[1739811107369,0.063,178.74,178.73,31.41880896]
[1739811108125,0.063,178.74,178.73,37.01380896]
[1739811108346,0.063,178.74,178.73,31.41880896]
[1739811108521,0.063,178.74,178.73,37.01380896]
[1739811108851,0.063,178.74,178.73,31.41880896]
[1739811109148,0.063,178.74,178.69,31.40060896]
[1739811109348,29.91570896,178.74,178.68,29.85270896]
[1739811109548,29.85270896,178.73,178.67,29.85270896]
[1739811109714,29.85270896,178.72,178.66,36.2888035]
[1739811110215,29.85270896,178.72,178.66,29.85270896]
[1739811110537,29.85270896,178.73,178.67,30.69203445]
[1739811110713,29.91570896,178.74,178.68,29.85270896]
[1739811110912,0.063,178.74,178.69,29.85270896]
[1739811111149,0.063,178.74,178.7,29.85270896]
[1739811111550,0.063,178.74,178.72,29.85270896]
[1739811112155,0.063,178.74,178.7,29.85270896]
[1739811112741,29.91570896,178.74,178.68,35.44920896]
[1739811112940,0.063,178.74,178.7,29.85270896]
[1739811113343,0.063,178.74,178.71,29.85270896]
[1739811114246,0.063,178.74,178.7,29.85270896]
[1739811114648,0.063,178.74,178.7,18.61990992]
[1739811115263,18.61990992,178.73,178.67,18.61990992]
[1739811115471,23.29990992,178.72,178.66,6.46602588]
[1739811115771,18.61990992,178.71,178.66,0.03]
[1739811115968,18.61990992,178.7,178.66,0.03]
[1739811116847,18.61990992,178.71,178.66,0.03]
[1739811117771,24.21540992,178.72,178.66,18.64990992]
[1739811118873,24.21540992,178.72,178.66,0.03]
[1739811119563,0.063,178.74,178.69,18.61990992]
[1739811119774,0.063,178.74,178.7,18.61990992]
[1739811119951,0.063,178.74,178.72,18.61990992]
[1739811120477,0.063,178.74,178.69,18.61990992]
[1739811120653,0.063,178.74,178.7,19.45909338]
[1739811120962,0.063,178.74,178.72,18.61990992]
[1739811121470,0.063,178.74,178.71,24.21550992]
[1739811121635,0.063,178.74,178.72,18.61990992]
[1739811122238,0.063,178.74,178.68,22.46982267]
[1739811122468,18.68290992,178.74,178.68,20.25070992]
[1739811122775,18.61990992,178.71,178.66,0.03]
[1739811122943,18.61990992,178.72,178.66,0.03]
[1739811123143,18.61990992,178.72,178.66,18.64990992]
[1739811123652,18.61990992,178.73,178.66,24.24700992]
[1739811123958,24.21490992,178.73,178.67,18.61990992]
[1739811124443,24.27780992,178.74,178.68,18.61990992]
[1739811124764,35.45540637,178.74,178.68,29.79750637]
[1739811124964,29.79750637,178.73,178.67,29.79750637]
[1739811125168,29.79750637,178.73,178.66,29.82750637]
[1739811125341,29.79750637,178.72,178.66,0.03]
[1739811125534,29.79750637,178.71,178.66,0.03]
[1739811125742,29.79750637,178.73,178.66,29.82750637]
[1739811126154,29.79750637,178.72,178.66,29.82750637]
[1739811126762,29.79750637,178.73,178.67,29.79750637]
[1739811126937,29.79750637,178.72,178.66,29.82750637]
[1739811127339,29.79750637,178.7,178.66,0.03]
[1739811127778,35.39370637,178.7,178.66,0.03]
[1739811128183,29.79750637,178.69,178.66,0.03]
[1739811129245,29.79750637,178.7,178.66,0.03]
[1739811130166,29.79750637,178.71,178.66,0.03]
[1739811130371,117.19280637,178.72,178.66,29.82750637]
[1739811130670,29.79750637,178.73,178.67,29.79750637]
[1739811130869,0.063,178.74,178.71,29.79750637]
[1739811131168,0.063,178.74,178.72,29.79750637]
[1739811131340,0.063,178.74,178.73,29.79750637]
[1739811132144,0.063,178.74,178.73,30.63638736]
[1739811132686,0.063,178.74,178.73,49.64323589]
[1739811133663,0.0001,178.74,178.73,79.44074226]
[1739811133964,0.063,178.83,178.77,20.0]
[1739811134142,0.063,178.83,178.82,29.79750637]
[1739811134565,0.063,178.83,178.82,30.63596149]
[1739811134765,0.063,178.83,178.82,36.22816149]
[1739811135574,0.063,178.83,178.82,79.43751639]
[1739811135754,0.063,178.84,178.82,79.43751639]
[1739811136072,0.063,178.84,178.83,59.59501274]
[1739811136249,0.063,178.84,178.83,73.00686127]
[1739811136749,0.063,178.84,178.83,78.59876127]
[1739811136953,0.063,178.84,178.83,79.43702225]
[1739811137568,0.063,178.92,178.87,20.0]
[1739811137759,0.063,178.92,178.91,29.79750637]
[1739811137965,0.03,178.95,178.94,20.0]
[1739811138172,0.03,178.95,178.94,49.79750637]
[1739811139672,0.03,178.95,178.92,29.79750637]
[1739811139875,29.82750637,178.95,178.89,29.79750637]
[1739811140061,0.03,178.95,178.9,30.63571571]
[1739811140262,0.03,178.95,178.9,29.79750637]
[1739811140478,0.03,178.95,178.91,29.79750637]
[1739811140873,0.03,178.95,178.9,29.79750637]
[1739811141068,29.82750637,178.95,178.89,30.63566036]
[1739811141270,29.79750637,178.93,178.87,29.79750637]
[1739811141566,29.79750637,178.91,178.85,29.79750637]
[1739811142167,29.79750637,178.9,178.84,29.79750637]
[1739811142478,29.79750637,178.9,178.83,29.79750637]
[1739811142679,29.79750637,178.9,178.84,29.79750637]
[1739811142875,29.79750637,178.92,178.86,29.79750637]
[1739811143184,0.03,178.95,178.91,29.79750637]
[1739811143391,0.03,178.95,178.93,29.79750637]
[1739811143753,0.03,178.95,178.94,29.79750637]
[1739811144561,0.03,178.95,178.93,29.79750637]
[1739811145173,0.03,178.95,178.91,29.79750637]
[1739811145383,0.03,178.95,178.9,29.79750637]
[1739811145877,0.03,178.95,178.91,29.79750637]
[1739811146078,0.03,178.95,178.89,20.0]
[1739811146284,29.82750637,178.95,178.89,29.79750637]
[1739811146584,29.79750637,178.9,178.84,29.79750637]
[1739811146782,29.79750637,178.92,178.86,29.79750637]
[1739811146965,0.03,178.95,178.9,29.79750637]
[1739811147285,35.41560637,178.95,178.89,29.79750637]
[1739811147460,0.03,178.95,178.9,29.79750637]
[1739811147657,29.82750637,178.95,178.89,29.79750637]
[1739811148183,0.03,178.95,178.91,29.79750637]
[1739811148483,0.03,178.95,178.9,29.79750637]
[1739811149573,0.03,178.95,178.89,29.79750637]
[1739811149787,29.82750637,178.95,178.89,29.79750637]
[1739811149994,0.03,178.95,178.89,29.79750637]
[1739811150182,0.03,178.95,178.9,29.79750637]
[1739811150485,0.03,178.95,178.92,29.79750637]
[1739811150867,0.03,178.95,178.94,29.79750637]
[1739811153091,0.03,178.95,178.93,29.79750637]
[1739811153296,0.03,178.95,178.91,30.63555145]
[1739811153463,0.03,178.95,178.93,29.79750637]
[1739811153786,0.03,178.95,178.9,29.79750637]
[1739811154174,29.82750637,178.95,178.89,29.79750637]
[1739811155168,29.82750637,178.95,178.9,29.79750637]
[1739811155787,5.5884,178.94,178.88,0.83812862]
[1739811155990,29.79750637,178.92,178.85,6.1289]
[1739811156284,29.79750637,178.93,178.87,29.79750637]
[1739811156676,29.79750637,178.92,178.87,29.79750637]
[1739811156881,29.79750637,178.9,178.83,14.98914853]
[1739811157058,29.79750637,178.9,178.84,29.79750637]
[1739811157263,29.79750637,178.92,178.86,29.79750637]
[1739811157767,29.79750637,178.91,178.85,29.79750637]
[1739811157968,29.79750637,178.89,178.83,45.62506519]
[1739811158288,35.38690637,178.91,178.85,29.79750637]
[1739811158791,29.79750637,178.9,178.84,29.79750637]
[1739811159165,29.79750637,178.89,178.83,49.86050637]
[1739811159462,29.79750637,178.87,178.83,0.063]
[1739811159666,29.79750637,178.86,178.83,0.063]
[1739811159908,5.5915,178.84,178.83,0.063]
[1739811160086,35.38880637,178.85,178.83,0.063]
[1739811160391,13.9757,178.89,178.83,29.86050637]
[1739811160392,5.5903,178.88,178.83,29.86050637]
[1739811160972,81.8,178.9,178.86,29.79750637]
[1739811160973,87.3897,178.9,178.86,29.79750637]
[1739811161170,5.589,178.92,178.87,29.79750637]
[1739811161788,29.79750637,178.91,178.85,29.79750637]
[1739811161985,29.79750637,178.9,178.84,29.79750637]
[1739811162371,29.79750637,178.88,178.83,0.063]
[1739811163093,19.5617,178.92,178.83,29.86050637]
[1739811163388,19.5617,178.92,178.84,29.79750637]
[1739811163587,29.79750637,178.9,178.84,29.79750637]
[1739811164092,29.79750637,178.9,178.83,0.063]
[1739811164093,29.79750637,178.88,178.83,0.063]
[1739811164695,29.79750637,178.89,178.83,29.86050637]
[1739811165292,29.79750637,178.88,178.83,0.063]
[1739811165501,29.79750637,178.86,178.83,0.063]
[1739811165997,29.79750637,178.84,178.83,0.063]
[1739811166421,5.5906,178.87,178.83,0.063]
[1739811166586,29.79750637,178.85,178.83,0.063]
[1739811166792,29.79750637,178.84,178.83,0.063]
[1739811167281,29.79750637,178.85,178.83,0.063]
[1739811167618,111.59750637,178.86,178.83,0.063]
[1739811167775,81.8,178.86,178.83,0.063]
[1739811168180,29.79750637,178.88,178.83,0.063]
[1739811168477,29.79750637,178.89,178.83,0.063]
[1739811168681,111.59750637,178.91,178.85,29.79750637]
[1739811168891,81.8,178.91,178.86,29.79750637]
[1739811169879,81.8,178.91,178.85,20.0]
[1739811170085,4.68,178.9,178.85,29.79750637]
[1739811170288,81.8,178.91,178.85,29.79750637]
[1739811170488,111.59750637,178.91,178.85,29.79750637]
[1739811170681,29.79750637,178.9,178.86,20.0]
[1739811170872,29.79750637,178.88,178.83,0.063]
[1739811171610,29.79750637,178.89,178.83,0.063]
[1739811171910,81.8,178.91,178.87,29.79750637]
[1739811172112,29.79750637,178.93,178.87,29.79750637]
[1739811172317,111.59750637,178.94,178.87,29.79750637]
[1739811172618,111.59750637,178.94,178.88,29.79750637]
[1739811172824,87.3885,178.94,178.87,29.79750637]
[1739811173117,0.03,178.92,178.89,29.79750637]
[1739811173899,0.03,178.92,178.91,29.79750637]
[1739811174999,0.03,178.92,178.88,29.79750637]
[1739811175210,0.03,178.92,178.87,29.79750637]
[1739811177403,0.03,178.92,178.88,29.79750637]
[1739811180191,0.03,178.92,178.85,20.29919962]
[1739811180508,0.03,178.92,178.87,29.79750637]
[1739811180714,0.03,178.92,178.88,29.79750637]
[1739811181416,29.82750637,178.92,178.85,29.79750637]
[1739811181717,29.79750637,178.89,178.83,29.86050637]
[1739811181889,29.79750637,178.9,178.83,29.86050637]
[1739811182291,29.82750637,178.92,178.86,29.79750637]
[1739811182603,5.5894,178.91,178.86,29.79750637]
[1739811183002,5.5894,178.91,178.85,29.79750637]
[1739811184395,29.79750637,178.9,178.83,0.063]
[1739811184695,29.79750637,178.87,178.83,0.063]
[1739811185611,29.79750637,178.86,178.83,0.063]
[1739811185992,29.79750637,178.87,178.83,0.063]
[1739811186498,29.79750637,178.86,178.83,0.063]
[1739811186700,29.79750637,178.87,178.83,0.063]
[1739811186893,35.38780637,178.88,178.83,0.063]
[1739811188200,29.79750637,178.87,178.83,0.063]
[1739811188423,29.79750637,178.85,178.83,0.063]
[1739811188600,29.79750637,178.86,178.83,0.063]
[1739811189725,5.5909,178.86,178.83,0.063]
[1739811190025,35.38840637,178.86,178.83,0.063]
[1739811190709,24.1906082,178.86,178.83,0.063]
[1739811191022,5.5909,178.86,178.83,0.063]
[1739811191393,18.5997082,178.87,178.83,0.063]
[1739811191598,105.9898082,178.89,178.83,0.063]
[1739811191798,105.9898082,178.89,178.83,18.6627082]
[1739811192798,87.3901,178.89,178.84,18.5997082]
[1739811192999,0.03,178.92,178.88,18.5997082]
[1739811193220,0.03,178.92,178.91,18.5997082]
[1739811195498,0.03,178.92,178.91,19.43782675]
[1739811195823,0.03,178.92,178.91,25.02722675]
[1739811196731,0.03,178.92,178.91,36.13941612]
[1739811197018,0.03,178.92,178.91,29.71189757]
[1739811198325,0.03,178.92,178.89,29.71189757]
[1739811199029,29.74189757,178.92,178.86,29.77489757]
[1739811199218,5.5894,178.91,178.86,0.063]
[1739811199813,5.5894,178.91,178.86,29.77489757]
[1739811200011,29.71189757,178.9,178.86,0.063]
[1739811200213,29.71189757,178.89,178.86,0.063]
[1739811201022,29.71189757,178.88,178.86,0.063]
[1739811201399,13.9735,178.91,178.86,0.063]
[1739811201400,29.71189757,178.89,178.86,0.063]
[1739811201824,35.30159757,178.9,178.86,0.063]
[1739811202116,0.03,178.92,178.87,29.71189757]
[1739811202426,5.6193,178.92,178.87,29.71189757]
[1739811202834,5.6193,178.92,178.86,29.77489757]
[1739811203512,29.74189757,178.92,178.86,29.77489757]
[1739811203714,29.71189757,178.91,178.86,0.063]
[1739811204115,29.74189757,178.92,178.86,29.77489757]